[Event "*** Titled Tuesday Blitz"]
[Site "Chess.com"]
[Date "2018.04.03"]
[Round "5"]
[White "pultineviciuspaulius"]
[Black "FMJoseHerrera"]
[Result "0-1"]
[WhiteElo "2593"]
[BlackElo "2493"]
[TimeControl "180+2"]
[EndTime "14:05:32 PDT"]
[Termination "FMJoseHerrera won by resignation"]

1. e4 {[%clk 0:03:01.8]} 1... c5 {[%clk 0:03:00.2]} 2. Nf3 {[%clk 0:03:02.7]}
2... e6 {[%clk 0:03:01]} 3. d4 {[%clk 0:03:03.9]} 3... cxd4 {[%clk 0:03:02.9]}
4. Nxd4 {[%clk 0:03:05.8]} 4... a6 {[%clk 0:03:04.3]} 5. Nc3 {[%clk 0:03:06.4]}
5... Qc7 {[%clk 0:03:03.8]} 6. Qf3 {[%clk 0:03:05.7]} 6... d6 {[%clk 0:03:02.5]}
7. Be3 {[%clk 0:03:06.3]} 7... Nd7 {[%clk 0:03:03]} 8. O-O-O {[%clk 0:03:07]}
8... b5 {[%clk 0:03:00.7]} 9. a3 {[%clk 0:02:59.6]} 9... Bb7 {[%clk 0:03:01.2]}
10. Qg3 {[%clk 0:03:00.3]} 10... Ngf6 {[%clk 0:03:00.6]} 11. Bd3 {[%clk
0:02:59.9]} 11... Rb8 {[%clk 0:02:57]} 12. f4 {[%clk 0:02:57.3]} 12... Nc5
{[%clk 0:02:55.8]} 13. Bxb5+ {[%clk 0:02:47]} 13... axb5 {[%clk 0:02:54.4]} 14.
Ndxb5 {[%clk 0:02:48.8]} 14... Qb6 {[%clk 0:02:47.8]} 15. e5 {[%clk 0:02:49.3]}
15... Nfe4 {[%clk 0:02:31.9]} 16. Bxc5 {[%clk 0:01:58.9]} 16... dxc5 {[%clk
0:02:19.7]} 17. Nxe4 {[%clk 0:01:40.8]} 17... Bxe4 {[%clk 0:02:21.6]} 18. a4
{[%clk 0:01:41.3]} 18... Bc6 {[%clk 0:02:21.6]} 19. c4 {[%clk 0:01:15.7]} 19...
Bxb5 {[%clk 0:02:22]} 20. cxb5 {[%clk 0:01:17]} 20... g6 {[%clk 0:02:19.2]} 21.
Qd3 {[%clk 0:00:59.8]} 21... Qc7 {[%clk 0:02:11.8]} 22. a5 {[%clk 0:00:39.1]}
22... c4 {[%clk 0:02:00.4]} 23. Qe4 {[%clk 0:00:21.4]} 23... Rxb5 {[%clk
0:01:49.1]} 24. a6 {[%clk 0:00:14]} 24... Bc5 {[%clk 0:01:42.7]} 25. Kb1 {[%clk
0:00:06.8]} 25... c3 {[%clk 0:01:41.7]} 26. Qa4 {[%clk 0:00:06.6]} 26... Qb6
{[%clk 0:01:37.7]} 27. a7 {[%clk 0:00:06.5]} 27... O-O {[%clk 0:01:18.8]} 28.
a8=Q {[%clk 0:00:06.8]} 28... Rxb2+ {[%clk 0:00:54.9]} 29. Ka1 {[%clk
0:00:07.2]} 29... c2 {[%clk 0:00:51.4]} 30. Qxf8+ {[%clk 0:00:06.9]} 30... Bxf8
{[%clk 0:00:53.3]} 31. Rc1 {[%clk 0:00:06.7]} 31... Rb4 {[%clk 0:00:46.6]} 32.
Qa2 {[%clk 0:00:07.6]} 32... Qd4+ {[%clk 0:00:45.9]} 0-1

[Event "*** Titled Tuesday Blitz"]
[Site "Chess.com"]
[Date "2018.04.03"]
[Round "5"]
[White "SmoothAsAHedgehog"]
[Black "ShimanovAlex"]
[Result "0-1"]
[WhiteElo "2580"]
[BlackElo "2715"]
[TimeControl "180+2"]
[EndTime "14:05:34 PDT"]
[Termination "ShimanovAlex won by resignation"]

1. Nf3 {[%clk 0:03:01.9]} 1... Nf6 {[%clk 0:02:53.9]} 2. c4 {[%clk 0:03:02.2]}
2... c5 {[%clk 0:02:54.7]} 3. g3 {[%clk 0:03:02.8]} 3... g6 {[%clk 0:02:52.6]}
4. Bg2 {[%clk 0:03:03]} 4... Bg7 {[%clk 0:02:53.6]} 5. Nc3 {[%clk 0:03:04.4]}
5... d5 {[%clk 0:02:52.8]} 6. cxd5 {[%clk 0:03:04.4]} 6... Nxd5 {[%clk
0:02:54.7]} 7. O-O {[%clk 0:03:05.5]} 7... O-O {[%clk 0:02:54.5]} 8. Nxd5 {[%clk
0:03:03.2]} 8... Qxd5 {[%clk 0:02:54.8]} 9. d3 {[%clk 0:03:04.8]} 9... Nc6
{[%clk 0:02:54.8]} 10. Be3 {[%clk 0:03:05.4]} 10... Bd7 {[%clk 0:02:54]} 11. Nd4
{[%clk 0:03:04.2]} 11... Qd6 {[%clk 0:02:53.6]} 12. Nxc6 {[%clk 0:03:05.3]}
12... Bxc6 {[%clk 0:02:55.5]} 13. Bxc6 {[%clk 0:03:05.8]} 13... Qxc6 {[%clk
0:02:57.4]} 14. Rc1 {[%clk 0:03:02.8]} 14... Qa6 {[%clk 0:02:57.9]} 15. Rxc5
{[%clk 0:02:52.7]} 15... b6 {[%clk 0:02:58.8]} 16. Rc7 {[%clk 0:02:40.4]} 16...
Qxa2 {[%clk 0:02:58.6]} 17. b4 {[%clk 0:02:41]} 17... a5 {[%clk 0:02:58.7]} 18.
bxa5 {[%clk 0:02:06.7]} 18... bxa5 {[%clk 0:02:57.9]} 19. Rxe7 {[%clk 0:02:07]}
19... a4 {[%clk 0:02:54.3]} 20. d4 {[%clk 0:02:07.4]} 20... a3 {[%clk
0:02:54.3]} 21. Rc7 {[%clk 0:01:59.6]} 21... Rfd8 {[%clk 0:02:48.8]} 22. Rc1
{[%clk 0:01:59.2]} 22... Qd5 {[%clk 0:02:47.4]} 23. Qc2 {[%clk 0:01:54.2]} 23...
a2 {[%clk 0:02:45.9]} 24. Ra1 {[%clk 0:01:49.6]} 24... Ra3 {[%clk 0:02:40.6]}
25. Qb2 {[%clk 0:01:39.7]} 25... Rda8 {[%clk 0:02:37.7]} 26. Rfc1 {[%clk
0:01:40.2]} 26... h5 {[%clk 0:02:35.8]} 27. h4 {[%clk 0:01:34.5]} 27... Qe4
{[%clk 0:02:18.3]} 28. Rc3 {[%clk 0:01:01.9]} 28... Rxc3 {[%clk 0:01:42.4]} 29.
Qxc3 {[%clk 0:01:02.7]} 29... Qb1+ {[%clk 0:01:43.8]} 30. Bc1 {[%clk 0:01:01.2]}
30... Rb8 {[%clk 0:01:17.3]} 31. Kh2 {[%clk 0:00:11.4]} 31... Rb3 {[%clk
0:01:11]} 32. Qc8+ {[%clk 0:00:07.8]} 32... Kh7 {[%clk 0:01:11.9]} 33. Rxa2
{[%clk 0:00:06.1]} 33... Qxa2 {[%clk 0:01:12]} 34. Qe8 {[%clk 0:00:07.2]} 34...
Rb1 {[%clk 0:01:09.7]} 35. Bf4 {[%clk 0:00:07]} 35... Qd5 {[%clk 0:01:05.3]} 36.
e4 {[%clk 0:00:06.2]} 36... Qxd4 {[%clk 0:01:05.4]} 37. Be3 {[%clk 0:00:07.7]}
37... Qf6 {[%clk 0:01:05]} 38. e5 {[%clk 0:00:08.1]} 38... Qf3 {[%clk
0:01:05.9]} 39. Qh8+ {[%clk 0:00:07.6]} 0-1

[Event "*** Titled Tuesday Blitz"]
[Site "Chess.com"]
[Date "2018.04.03"]
[Round "5"]
[White "jefferyx"]
[Black "pKiLz5Rn9b"]
[Result "1-0"]
[WhiteElo "2749"]
[BlackElo "2636"]
[TimeControl "180+2"]
[EndTime "14:05:36 PDT"]
[Termination "jefferyx won on time"]

1. e4 {[%clk 0:03:01.9]} 1... e6 {[%clk 0:03:00.1]} 2. d4 {[%clk 0:03:02.7]}
2... d5 {[%clk 0:03:00.9]} 3. Nc3 {[%clk 0:03:04.2]} 3... dxe4 {[%clk
0:03:01.5]} 4. Nxe4 {[%clk 0:03:05.3]} 4... Nd7 {[%clk 0:03:03.1]} 5. Nf3 {[%clk
0:02:55.2]} 5... Ngf6 {[%clk 0:03:03.4]} 6. Nxf6+ {[%clk 0:02:53.3]} 6... Nxf6
{[%clk 0:03:03.5]} 7. Bd3 {[%clk 0:02:54.4]} 7... c5 {[%clk 0:03:03.8]} 8. dxc5
{[%clk 0:02:36.3]} 8... Bxc5 {[%clk 0:03:03.8]} 9. Qe2 {[%clk 0:02:38.2]} 9...
O-O {[%clk 0:03:03.1]} 10. Bg5 {[%clk 0:02:37.6]} 10... h6 {[%clk 0:02:28.6]}
11. h4 {[%clk 0:02:36.6]} 11... Qb6 {[%clk 0:02:03.5]} 12. O-O-O {[%clk
0:01:56.2]} 12... Ng4 {[%clk 0:01:59.3]} 13. Rdf1 {[%clk 0:01:17.8]} 13... e5
{[%clk 0:01:11.9]} 14. Nd2 {[%clk 0:00:42.7]} 14... f5 {[%clk 0:00:59.2]} 15.
Nc4 {[%clk 0:00:38.9]} 15... Qc7 {[%clk 0:00:55.2]} 16. f3 {[%clk 0:00:38.7]}
16... hxg5 {[%clk 0:00:37.3]} 17. fxg4 {[%clk 0:00:39.5]} 17... e4 {[%clk
0:00:38.9]} 18. hxg5 {[%clk 0:00:41.1]} 18... exd3 {[%clk 0:00:40.1]} 19. Qxd3
{[%clk 0:00:43]} 19... Qe7 {[%clk 0:00:26.1]} 20. Kb1 {[%clk 0:00:37.8]} 20...
Qe4 {[%clk 0:00:15.1]} 21. Qh3 {[%clk 0:00:19.1]} 21... Qxg4 {[%clk 0:00:16.1]}
22. Qh7+ {[%clk 0:00:18.4]} 22... Kf7 {[%clk 0:00:17.2]} 23. Ne5+ {[%clk
0:00:20.3]} 23... Ke8 {[%clk 0:00:10.6]} 24. Nxg4 {[%clk 0:00:22.2]} 24... fxg4
{[%clk 0:00:12]} 25. Qg6+ {[%clk 0:00:21.7]} 25... Kd8 {[%clk 0:00:11.1]} 26.
Rxf8+ {[%clk 0:00:20.9]} 26... Bxf8 {[%clk 0:00:12.6]} 27. Qf7 {[%clk
0:00:20.7]} 1-0

[Event "*** Titled Tuesday Blitz"]
[Site "Chess.com"]
[Date "2018.04.03"]
[Round "5"]
[White "JSPrepz"]
[Black "Tash_Boy"]
[Result "1-0"]
[WhiteElo "2587"]
[BlackElo "2500"]
[TimeControl "180+2"]
[EndTime "14:05:45 PDT"]
[Termination "JSPrepz won by resignation"]

1. e4 {[%clk 0:03:01.8]} 1... e5 {[%clk 0:03:01]} 2. Nf3 {[%clk 0:02:56.3]} 2...
Nc6 {[%clk 0:03:02.3]} 3. Nc3 {[%clk 0:02:57.5]} 3... Nf6 {[%clk 0:03:02.3]} 4.
a3 {[%clk 0:02:59]} 4... a6 {[%clk 0:03:00.9]} 5. d4 {[%clk 0:02:47.4]} 5...
exd4 {[%clk 0:03:00.7]} 6. Nxd4 {[%clk 0:02:49.3]} 6... d6 {[%clk 0:03:00.4]} 7.
Be2 {[%clk 0:02:41.1]} 7... Be7 {[%clk 0:03:00.2]} 8. O-O {[%clk 0:02:41.3]}
8... O-O {[%clk 0:03:00.9]} 9. Be3 {[%clk 0:02:38.1]} 9... Re8 {[%clk
0:02:57.9]} 10. f3 {[%clk 0:02:36.3]} 10... d5 {[%clk 0:02:50.4]} 11. Nxc6
{[%clk 0:02:23.6]} 11... bxc6 {[%clk 0:02:52.3]} 12. e5 {[%clk 0:02:25.2]} 12...
Nd7 {[%clk 0:02:52.4]} 13. f4 {[%clk 0:02:23.5]} 13... f5 {[%clk 0:02:52.3]} 14.
Nxd5 {[%clk 0:02:19.9]} 14... Nf8 {[%clk 0:02:24.5]} 15. Nxe7+ {[%clk
0:02:01.2]} 15... Qxe7 {[%clk 0:02:26.4]} 16. Bf3 {[%clk 0:02:01.9]} 16... Bb7
{[%clk 0:02:16]} 17. Qe2 {[%clk 0:01:59.8]} 17... Ne6 {[%clk 0:02:14.9]} 18.
Rfd1 {[%clk 0:01:59.9]} 18... Rab8 {[%clk 0:02:12.5]} 19. Qc4 {[%clk 0:02:00.1]}
19... c5 {[%clk 0:02:08.5]} 20. Bxb7 {[%clk 0:01:59.2]} 20... Rxb7 {[%clk
0:02:09.5]} 21. b3 {[%clk 0:02:00.7]} 21... Rb6 {[%clk 0:02:00.8]} 22. Rd5
{[%clk 0:01:48]} 22... g5 {[%clk 0:01:20.4]} 23. fxg5 {[%clk 0:01:39.1]} 23...
f4 {[%clk 0:01:19.2]} 24. Bxf4 {[%clk 0:01:34.8]} 24... Qf7 {[%clk 0:01:20.1]}
25. Be3 {[%clk 0:01:27.8]} 25... Rf8 {[%clk 0:01:20.1]} 26. Rad1 {[%clk
0:01:26.5]} 26... Kh8 {[%clk 0:01:01.7]} 27. Rd7 {[%clk 0:01:23.3]} 27... Qg6
{[%clk 0:01:02.1]} 28. Rf1 {[%clk 0:01:19.7]} 28... Qe8 {[%clk 0:00:47.6]} 29.
Rxf8+ {[%clk 0:01:11.1]} 29... Qxf8 {[%clk 0:00:48.7]} 30. Qd3 {[%clk
0:01:09.6]} 30... Qg8 {[%clk 0:00:47.7]} 31. Qf5 {[%clk 0:01:01.1]} 31... Qg6
{[%clk 0:00:45.7]} 32. Qf6+ {[%clk 0:00:46.7]} 32... Kg8 {[%clk 0:00:46.1]} 33.
Qe7 {[%clk 0:00:36.4]} 33... Nf8 {[%clk 0:00:38]} 34. Rd8 {[%clk 0:00:34.4]}
34... Qf5 {[%clk 0:00:38.7]} 35. Rxf8+ {[%clk 0:00:34.5]} 35... Qxf8 {[%clk
0:00:37.4]} 36. Qxf8+ {[%clk 0:00:35.3]} 36... Kxf8 {[%clk 0:00:39.3]} 37. Bxc5+
{[%clk 0:00:37]} 1-0

[Event "*** Titled Tuesday Blitz"]
[Site "Chess.com"]
[Date "2018.04.03"]
[Round "5"]
[White "BartoszSocko"]
[Black "florianschwabeneder"]
[Result "1-0"]
[WhiteElo "2568"]
[BlackElo "2377"]
[TimeControl "180+2"]
[EndTime "14:05:47 PDT"]
[Termination "BartoszSocko won by resignation"]

1. e4 {[%clk 0:03:01.9]} 1... c5 {[%clk 0:02:58.9]} 2. Nf3 {[%clk 0:03:02.6]}
2... d6 {[%clk 0:02:59.8]} 3. d4 {[%clk 0:03:03.9]} 3... cxd4 {[%clk 0:03:01.7]}
4. Nxd4 {[%clk 0:03:05.6]} 4... Nf6 {[%clk 0:03:02.3]} 5. Nc3 {[%clk 0:03:07.1]}
5... Nc6 {[%clk 0:03:03.3]} 6. Be3 {[%clk 0:03:07.2]} 6... Ng4 {[%clk
0:03:01.2]} 7. Bg5 {[%clk 0:03:04.4]} 7... Qb6 {[%clk 0:02:56]} 8. Bb5 {[%clk
0:02:35]} 8... Bd7 {[%clk 0:01:44.7]} 9. Bxc6 {[%clk 0:02:33.2]} 9... bxc6
{[%clk 0:01:43.5]} 10. O-O {[%clk 0:02:29.6]} 10... e5 {[%clk 0:01:37.8]} 11.
Nf5 {[%clk 0:02:26.7]} 11... h6 {[%clk 0:01:09.1]} 12. Bh4 {[%clk 0:02:19.7]}
12... Bxf5 {[%clk 0:00:57]} 13. exf5 {[%clk 0:02:19.7]} 13... Nf6 {[%clk
0:00:58]} 14. Bxf6 {[%clk 0:02:19.9]} 14... gxf6 {[%clk 0:00:59.7]} 15. Ne4
{[%clk 0:02:19.8]} 15... Be7 {[%clk 0:00:58.2]} 16. Nxd6+ {[%clk 0:02:19.2]}
16... Kf8 {[%clk 0:00:48.5]} 17. Nc4 {[%clk 0:02:17.8]} 17... Qc5 {[%clk
0:00:44.9]} 18. b3 {[%clk 0:02:14.7]} 18... h5 {[%clk 0:00:45.9]} 19. Qf3 {[%clk
0:02:13.6]} 19... h4 {[%clk 0:00:42]} 20. Rad1 {[%clk 0:02:10.6]} 20... h3
{[%clk 0:00:32]} 21. g3 {[%clk 0:02:11.8]} 21... Rd8 {[%clk 0:00:10.3]} 22. Qe3
{[%clk 0:01:58.3]} 22... Rd5 {[%clk 0:00:08.6]} 23. Qxc5 {[%clk 0:01:54.1]}
23... Bxc5 {[%clk 0:00:09.1]} 24. Ne3 {[%clk 0:01:55.3]} 24... Bxe3 {[%clk
0:00:09]} 25. fxe3 {[%clk 0:01:57.2]} 25... Ke7 {[%clk 0:00:10.3]} 26. c4 {[%clk
0:01:50.9]} 26... Rxd1 {[%clk 0:00:06.4]} 27. Rxd1 {[%clk 0:01:52.8]} 27... a5
{[%clk 0:00:07.8]} 28. Kf2 {[%clk 0:01:51.6]} 28... a4 {[%clk 0:00:05.9]} 29. b4
{[%clk 0:01:45.7]} 29... a3 {[%clk 0:00:05.4]} 30. Rd3 {[%clk 0:01:40.4]} 30...
Rb8 {[%clk 0:00:05.2]} 31. Rb3 {[%clk 0:01:41.4]} 31... e4 {[%clk 0:00:05.4]}
32. g4 {[%clk 0:01:42.2]} 32... Kd6 {[%clk 0:00:05.8]} 33. Kg3 {[%clk
0:01:43.4]} 33... Ke5 {[%clk 0:00:06.4]} 34. Kxh3 {[%clk 0:01:44.5]} 34... Rd8
{[%clk 0:00:05.1]} 35. Kg3 {[%clk 0:01:43]} 35... Rd2 {[%clk 0:00:03.8]} 36.
Rxa3 {[%clk 0:01:42.6]} 36... Rc2 {[%clk 0:00:03.3]} 37. Ra5+ {[%clk 0:01:40.9]}
37... Kd6 {[%clk 0:00:03.8]} 38. Ra7 {[%clk 0:01:29.4]} 38... Rxc4 {[%clk
0:00:03.7]} 39. Rxf7 {[%clk 0:01:30.3]} 39... Ke5 {[%clk 0:00:05]} 40. Re7+
{[%clk 0:01:31.4]} 40... Kd5 {[%clk 0:00:06]} 41. a3 {[%clk 0:01:27]} 41... Rc3
{[%clk 0:00:07.1]} 42. Kf4 {[%clk 0:01:28]} 42... Rxa3 {[%clk 0:00:08]} 43. Rd7+
{[%clk 0:01:27.3]} 43... Kc4 {[%clk 0:00:07.9]} 44. Rd4+ {[%clk 0:01:27.6]}
44... Kb5 {[%clk 0:00:09.2]} 45. Rxe4 {[%clk 0:01:27.8]} 45... Ra2 {[%clk
0:00:08.4]} 46. h4 {[%clk 0:01:28.8]} 1-0

[Event "*** Titled Tuesday Blitz"]
[Site "Chess.com"]
[Date "2018.04.03"]
[Round "5"]
[White "Muracle"]
[Black "Marcus_Harvey"]
[Result "1-0"]
[WhiteElo "2463"]
[BlackElo "2608"]
[TimeControl "180+2"]
[EndTime "14:05:59 PDT"]
[Termination "Muracle won by resignation"]

1. Nf3 {[%clk 0:03:01.9]} 1... e6 {[%clk 0:03:01.4]} 2. g3 {[%clk 0:03:01.3]}
2... Nf6 {[%clk 0:03:02.3]} 3. Bg2 {[%clk 0:03:02.1]} 3... b5 {[%clk 0:03:03.8]}
4. O-O {[%clk 0:03:02.6]} 4... Bb7 {[%clk 0:03:04.5]} 5. d3 {[%clk 0:03:04.2]}
5... d5 {[%clk 0:03:04.9]} 6. c4 {[%clk 0:03:04.7]} 6... dxc4 {[%clk 0:03:04.8]}
7. dxc4 {[%clk 0:03:05.6]} 7... Qxd1 {[%clk 0:03:05.2]} 8. Rxd1 {[%clk
0:03:06.5]} 8... bxc4 {[%clk 0:03:06.6]} 9. Bf4 {[%clk 0:03:05.5]} 9... Na6
{[%clk 0:03:07.1]} 10. Ne5 {[%clk 0:03:03.2]} 10... Bxg2 {[%clk 0:03:06.9]} 11.
Kxg2 {[%clk 0:03:05.1]} 11... Bd6 {[%clk 0:03:03.7]} 12. Nd2 {[%clk 0:03:02.4]}
12... c3 {[%clk 0:03:01.1]} 13. bxc3 {[%clk 0:03:03.3]} 13... Nd5 {[%clk
0:02:54.5]} 14. Ndc4 {[%clk 0:03:02.1]} 14... g5 {[%clk 0:02:17.3]} 15. Bxg5
{[%clk 0:02:50.9]} 15... Bxe5 {[%clk 0:02:16.6]} 16. Nxe5 {[%clk 0:02:51.2]}
16... f6 {[%clk 0:02:18]} 17. Rxd5 {[%clk 0:02:47.5]} 17... exd5 {[%clk
0:02:19]} 18. Bxf6 {[%clk 0:02:48.1]} 18... Rf8 {[%clk 0:02:19.8]} 19. Bg7
{[%clk 0:02:42.4]} 19... Rg8 {[%clk 0:02:19]} 20. Bh6 {[%clk 0:02:42.7]} 20...
Rb8 {[%clk 0:02:16.6]} 21. Be3 {[%clk 0:02:42.3]} 21... Rb2 {[%clk 0:02:04.2]}
22. Rd1 {[%clk 0:02:37.6]} 22... Rxe2 {[%clk 0:01:59.5]} 23. Rxd5 {[%clk
0:02:37.5]} 23... Rxa2 {[%clk 0:01:58.2]} 24. Nc6 {[%clk 0:02:26.2]} 24... Kf7
{[%clk 0:01:45.9]} 25. Rd7+ {[%clk 0:02:23.8]} 25... Ke6 {[%clk 0:01:40.8]} 26.
Rxh7 {[%clk 0:02:23.9]} 26... Kd6 {[%clk 0:01:34.9]} 27. Nxa7 {[%clk 0:02:21.7]}
27... c5 {[%clk 0:01:20.6]} 28. Rh6+ {[%clk 0:02:13]} 28... Kd5 {[%clk
0:01:20.5]} 29. Nc6 {[%clk 0:02:11.1]} 29... Kc4 {[%clk 0:01:20.1]} 30. Rh5
{[%clk 0:01:55.5]} 30... Rc8 {[%clk 0:01:13.7]} 31. Ne7 {[%clk 0:01:54.3]} 31...
Re8 {[%clk 0:01:10.4]} 32. Nd5 {[%clk 0:01:53.3]} 32... Rd8 {[%clk 0:00:57.3]}
33. Nf6 {[%clk 0:01:31.1]} 33... Ra5 {[%clk 0:00:23.2]} 34. Ne4 {[%clk
0:01:30.1]} 34... Rd5 {[%clk 0:00:20.7]} 35. Nd2+ {[%clk 0:01:24.8]} 35... Rxd2
{[%clk 0:00:21.4]} 36. Bxd2 {[%clk 0:01:25.9]} 36... Kd3 {[%clk 0:00:22.8]} 37.
Rd5+ {[%clk 0:01:25]} 37... Kc4 {[%clk 0:00:22.4]} 38. Rd7 {[%clk 0:01:19.9]}
38... Nb8 {[%clk 0:00:23.2]} 39. Rd6 {[%clk 0:01:17.5]} 39... Ra2 {[%clk
0:00:17.2]} 40. h4 {[%clk 0:01:15.5]} 40... Kb5 {[%clk 0:00:18.6]} 41. h5 {[%clk
0:01:15.5]} 41... Nc6 {[%clk 0:00:20.2]} 42. Be3 {[%clk 0:01:12.8]} 42... Na5
{[%clk 0:00:18.7]} 43. h6 {[%clk 0:01:11]} 43... Nb3 {[%clk 0:00:19.4]} 44. h7
{[%clk 0:01:04.2]} 44... Ra8 {[%clk 0:00:20.9]} 45. Bf4 {[%clk 0:01:02.3]} 45...
Rh8 {[%clk 0:00:21.4]} 46. Rh6 {[%clk 0:01:02.3]} 1-0

[Event "*** Titled Tuesday Blitz"]
[Site "Chess.com"]
[Date "2018.04.03"]
[Round "5"]
[White "TastyFrenchFries"]
[Black "Saitama_Hero"]
[Result "1-0"]
[WhiteElo "2317"]
[BlackElo "2135"]
[TimeControl "180+2"]
[EndTime "14:06:02 PDT"]
[Termination "TastyFrenchFries won on time"]

1. e4 {[%clk 0:03:01.9]} 1... c5 {[%clk 0:02:53.8]} 2. Nf3 {[%clk 0:03:01.1]}
2... e6 {[%clk 0:02:49.1]} 3. c3 {[%clk 0:03:01.3]} 3... a6 {[%clk 0:02:46.5]}
4. Bd3 {[%clk 0:03:00.4]} 4... b5 {[%clk 0:02:46.6]} 5. Bc2 {[%clk 0:02:58.7]}
5... Bb7 {[%clk 0:02:47.9]} 6. O-O {[%clk 0:02:58.3]} 6... Nc6 {[%clk 0:02:46]}
7. Re1 {[%clk 0:02:51.3]} 7... Rc8 {[%clk 0:02:37.6]} 8. a4 {[%clk 0:02:50.1]}
8... Nf6 {[%clk 0:02:31]} 9. axb5 {[%clk 0:02:48.7]} 9... axb5 {[%clk
0:02:32.9]} 10. h3 {[%clk 0:02:48.3]} 10... c4 {[%clk 0:02:22.1]} 11. d3 {[%clk
0:02:43.4]} 11... cxd3 {[%clk 0:02:21.4]} 12. Qxd3 {[%clk 0:02:43.1]} 12... b4
{[%clk 0:02:10.4]} 13. Bg5 {[%clk 0:02:20.2]} 13... Qb6 {[%clk 0:02:01.6]} 14.
Nbd2 {[%clk 0:02:17.2]} 14... Bc5 {[%clk 0:02:01.3]} 15. Re2 {[%clk 0:02:06.8]}
15... h6 {[%clk 0:01:49.5]} 16. Nc4 {[%clk 0:02:03.7]} 16... Qc7 {[%clk
0:01:49]} 17. Bxf6 {[%clk 0:01:57.9]} 17... gxf6 {[%clk 0:01:50.9]} 18. Ne3
{[%clk 0:01:49]} 18... Rg8 {[%clk 0:01:49.5]} 19. Rd2 {[%clk 0:01:47.2]} 19...
bxc3 {[%clk 0:01:43.3]} 20. bxc3 {[%clk 0:01:44.7]} 20... f5 {[%clk 0:01:28.3]}
21. exf5 {[%clk 0:01:41.8]} 21... Ne7 {[%clk 0:01:14.7]} 22. fxe6 {[%clk
0:01:02.3]} 22... fxe6 {[%clk 0:01:04.3]} 23. Ng4 {[%clk 0:00:49.9]} 23... Kd8
{[%clk 0:00:32.3]} 24. Nf6 {[%clk 0:00:37.6]} 24... Nd5 {[%clk 0:00:10.8]} 25.
Nxg8 {[%clk 0:00:36.7]} 25... Qf4 {[%clk 0:00:11.6]} 26. Qe4 {[%clk 0:00:31.7]}
26... Qf8 {[%clk 0:00:07.4]} 27. Qh4+ {[%clk 0:00:28.3]} 27... Kc7 {[%clk
0:00:07.2]} 28. Nxh6 {[%clk 0:00:28.3]} 28... Qg7 {[%clk 0:00:05.8]} 29. Qg5
{[%clk 0:00:23.1]} 29... Qxc3 {[%clk 0:00:04.9]} 30. Rb1 {[%clk 0:00:21.5]}
30... Bc6 {[%clk 0:00:03.4]} 31. Nf7 {[%clk 0:00:20.4]} 31... Re8 {[%clk
0:00:03.2]} 32. Qe5+ {[%clk 0:00:19.5]} 32... Qxe5 {[%clk 0:00:02.4]} 33. N3xe5
{[%clk 0:00:21.3]} 1-0

[Event "*** Titled Tuesday Blitz"]
[Site "Chess.com"]
[Date "2018.04.03"]
[Round "5"]
[White "GameOverBro"]
[Black "mokerslag"]
[Result "1-0"]
[WhiteElo "2404"]
[BlackElo "2402"]
[TimeControl "180+2"]
[EndTime "14:06:08 PDT"]
[Termination "GameOverBro won on time"]

1. e4 {[%clk 0:03:01.9]} 1... c5 {[%clk 0:02:59.9]} 2. Ne2 {[%clk 0:03:00.2]}
2... Nc6 {[%clk 0:02:59.6]} 3. Nbc3 {[%clk 0:03:00.3]} 3... g6 {[%clk
0:02:59.4]} 4. d4 {[%clk 0:02:59.5]} 4... cxd4 {[%clk 0:02:59.7]} 5. Nxd4 {[%clk
0:03:01.4]} 5... Bg7 {[%clk 0:03:00.8]} 6. Nde2 {[%clk 0:03:03.1]} 6... Nf6
{[%clk 0:02:56.2]} 7. g3 {[%clk 0:03:05]} 7... O-O {[%clk 0:02:55.9]} 8. Bg2
{[%clk 0:03:06.5]} 8... Rb8 {[%clk 0:02:55.9]} 9. a4 {[%clk 0:03:06.9]} 9... a6
{[%clk 0:02:56.6]} 10. O-O {[%clk 0:03:07.6]} 10... b5 {[%clk 0:02:57.8]} 11.
axb5 {[%clk 0:03:08.7]} 11... axb5 {[%clk 0:02:59.7]} 12. Nd5 {[%clk 0:03:10.1]}
12... Nxd5 {[%clk 0:02:52.7]} 13. exd5 {[%clk 0:03:11.1]} 13... Ne5 {[%clk
0:02:52.1]} 14. Ra2 {[%clk 0:03:08.1]} 14... d6 {[%clk 0:02:50.2]} 15. b3 {[%clk
0:03:07.8]} 15... Bg4 {[%clk 0:02:50.9]} 16. f3 {[%clk 0:03:01.3]} 16... Bd7
{[%clk 0:02:33.5]} 17. Be3 {[%clk 0:02:59.9]} 17... Ra8 {[%clk 0:02:31.1]} 18.
Rxa8 {[%clk 0:02:51.2]} 18... Qxa8 {[%clk 0:02:33]} 19. h3 {[%clk 0:02:40.3]}
19... Bc8 {[%clk 0:02:09.5]} 20. f4 {[%clk 0:02:36.9]} 20... Nd7 {[%clk
0:02:10.2]} 21. Nd4 {[%clk 0:02:36.2]} 21... Bxd4 {[%clk 0:01:32.6]} 22. Bxd4
{[%clk 0:02:25.1]} 22... Bb7 {[%clk 0:01:33.6]} 23. Bb2 {[%clk 0:02:24.6]} 23...
Nf6 {[%clk 0:01:25.9]} 24. Re1 {[%clk 0:02:06.7]} 24... Bxd5 {[%clk 0:00:57.6]}
25. Bxf6 {[%clk 0:02:02.5]} 25... Bxg2 {[%clk 0:00:57.3]} 26. Bxe7 {[%clk
0:01:57.7]} 26... Bxh3 {[%clk 0:00:58.1]} 27. Qd2 {[%clk 0:01:39.5]} 27... Re8
{[%clk 0:00:58.5]} 28. Kh2 {[%clk 0:01:38.6]} 28... Qb7 {[%clk 0:00:30.8]} 29.
Kxh3 {[%clk 0:01:09.2]} 29... Rxe7 {[%clk 0:00:31.8]} 30. Rxe7 {[%clk
0:00:57.6]} 30... Qxe7 {[%clk 0:00:33.7]} 31. Qd3 {[%clk 0:00:56.2]} 31... b4
{[%clk 0:00:23.8]} 32. Kh2 {[%clk 0:00:50.7]} 32... Qe6 {[%clk 0:00:15.1]} 33.
Qb5 {[%clk 0:00:46.2]} 33... Qe4 {[%clk 0:00:07.5]} 34. Qb8+ {[%clk 0:00:38.8]}
34... Kg7 {[%clk 0:00:08.1]} 35. Qc7 {[%clk 0:00:40.2]} 35... d5 {[%clk
0:00:07]} 36. Qc5 {[%clk 0:00:40.4]} 36... h5 {[%clk 0:00:07.4]} 37. Kg1 {[%clk
0:00:37.9]} 37... Kf6 {[%clk 0:00:02.6]} 38. Qd6+ {[%clk 0:00:36.3]} 1-0